bitfinex-derivatives/quotes_BTCF0:USTF0_20250121
["timestamp","ask_amount","ask_price","bid_price","bid_amount"]
[1737429366222,0.7976177,102540.0,102530.0,1.4855482]
[1737429366426,0.7976177,102540.0,102530.0,1.3530972]
[1737429366427,0.8796734,102540.0,102530.0,1.3530972]
[1737429366614,0.8796734,102540.0,102530.0,1.21522543]
[1737429366812,0.8796734,102540.0,102530.0,1.20881853]
[1737429367025,1.1796734,102540.0,102530.0,0.25514233]
[1737429367218,1.1796734,102540.0,102530.0,0.04835574]
[1737429367419,0.7585557,102540.0,102500.0,0.33377159]
[1737429367719,0.0820557,102510.0,102500.0,0.33377159]
[1737429367924,0.08216587,102510.0,102500.0,0.33377159]
[1737429368121,0.08216587,102510.0,102500.0,0.37347364]
[1737429368628,0.08216587,102510.0,102500.0,0.34904161]
[1737429368838,0.00011017,102510.0,102500.0,0.74891861]
[1737429369430,0.4819217,102530.0,102510.0,0.039073]
[1737429369622,0.4819217,102530.0,102520.0,0.2144]
[1737429369829,0.0820557,102530.0,102520.0,0.61427]
[1737429370125,0.76418529,102550.0,102530.0,0.039066]
[1737429370318,8.549e-05,102540.0,102530.0,0.399866]
[1737429370727,0.04748503,102560.0,102550.0,0.039058]
[1737429370925,0.20267971,102570.0,102560.0,0.039054]
[1737429371124,0.01054749,102590.0,102570.0,0.03905]
[1737429371427,0.3608,102610.0,102580.0,0.8036557]
[1737429371622,0.0820557,102620.0,102600.0,0.3608]
[1737429371821,0.69604848,102630.0,102610.0,0.039035]
[1737429372029,0.1210877,102620.0,102600.0,0.399839]
[1737429372331,0.0820557,102610.0,102600.0,0.039039]
[1737429372523,0.1210877,102620.0,102600.0,0.039039]
[1737429372726,0.0820557,102610.0,102600.0,0.039039]
[1737429372928,0.1210907,102610.0,102590.0,0.039043]
[1737429373125,0.0820557,102600.0,102590.0,0.039043]
[1737429373832,0.70683667,102630.0,102600.0,0.039037]
[1737429374133,0.26398097,102630.0,102610.0,0.399834]
[1737429374330,0.34603667,102630.0,102610.0,0.039034]
[1737429374531,0.26398097,102630.0,102610.0,0.039034]
[1737429374733,0.34603667,102630.0,102610.0,0.039034]
[1737429375930,0.70683667,102630.0,102610.0,0.039034]
[1737429378442,0.00052001,102640.0,102620.0,0.4818867]
[1737429378631,0.039017,102660.0,102630.0,0.4818817]
[1737429378832,0.37110011,102660.0,102630.0,0.4818817]
[1737429379037,0.3608,102660.0,102630.0,0.4818817]
[1737429379241,0.3608,102660.0,102630.0,0.399826]
[1737429379242,0.4818737,102660.0,102630.0,0.399826]
[1737429380242,0.1210737,102660.0,102630.0,0.399826]
[1737429380738,0.5782,102670.0,102650.0,0.3608]
[1737429381041,0.5782,102670.0,102650.0,0.39982]
[1737429381249,0.1104,102670.0,102660.0,0.3608]
[1737429381433,0.58886294,102680.0,102660.0,0.3608]
[1737429381736,0.67091864,102680.0,102660.0,0.3608]
[1737429381942,0.1210677,102670.0,102660.0,0.3608]
[1737429382736,0.039012,102670.0,102660.0,0.3608]
[1737429382935,0.54985194,102680.0,102660.0,0.3608]
[1737429383139,0.54985194,102680.0,102660.0,0.399815]
[1737429383638,0.54985194,102680.0,102670.0,0.3608]
[1737429383843,0.54985194,102680.0,102670.0,0.4818677]
[1737429384145,0.31880398,102690.0,102680.0,0.039009]
[1737429384345,0.31880398,102690.0,102680.0,0.501719]
[1737429385038,0.1,102700.0,102680.0,0.36508716]
[1737429385238,0.1,102700.0,102690.0,0.399805]
[1737429385738,0.139001,102700.0,102690.0,0.399805]
[1737429386040,0.139001,102700.0,102680.0,0.3608]
[1737429386041,0.5818567,102700.0,102680.0,0.3608]
[1737429386234,0.039009,102680.0,102670.0,0.3608]
[1737429386929,0.039009,102680.0,102660.0,0.476115]
[1737429386930,0.0820557,102680.0,102660.0,0.399815]
[1737429387134,0.03901,102680.0,102660.0,0.399815]
[1737429387740,0.03901,102680.0,102660.0,0.039015]
[1737429388141,0.4428557,102690.0,102660.0,0.039015]
[1737429388339,0.039012,102670.0,102660.0,0.039015]
[1737429389146,0.039012,102670.0,102650.0,0.47784181]
[1737429389446,1.6210747,102660.0,102650.0,0.3608]
[1737429389637,1.539019,102660.0,102650.0,0.3608]
[1737429389841,1.6210747,102660.0,102650.0,0.3608]
[1737429390045,0.03902,102650.0,102640.0,0.00146128]
[1737429390244,0.1210757,102650.0,102640.0,0.00146128]
[1737429390438,0.4818757,102650.0,102640.0,0.00146128]
[1737429392746,0.039024,102640.0,102630.0,8.621e-05]
[1737429393054,0.039017,102660.0,102640.0,0.039023]
[1737429393242,0.01061804,102660.0,102650.0,0.039019]
[1737429393441,0.144313,102670.0,102650.0,0.039019]
[1737429393749,0.1873557,102670.0,102630.0,0.55044191]
[1737429393939,0.039017,102660.0,102640.0,0.039023]
[1737429394447,0.1210727,102660.0,102640.0,0.039023]
[1737429394839,0.039017,102660.0,102640.0,0.039023]
[1737429395044,0.1210727,102660.0,102640.0,0.039023]
[1737429395351,0.03902,102650.0,102630.0,0.50741321]
[1737429395742,0.03902,102650.0,102630.0,0.39991321]
[1737429395942,0.1210757,102650.0,102630.0,0.39991321]
[1737429396142,0.039024,102640.0,102630.0,0.36088621]
[1737429396344,0.039024,102640.0,102630.0,8.621e-05]
[1737429396345,0.1210797,102640.0,102630.0,8.621e-05]
[1737429396547,0.2288797,102640.0,102630.0,8.621e-05]
[1737429396853,0.611724,102640.0,102630.0,8.621e-05]
[1737429397239,0.250924,102640.0,102630.0,8.621e-05]
[1737429397555,0.03954101,102650.0,102630.0,0.39991421]
[1737429397738,0.039021,102650.0,102630.0,0.39991421]
[1737429399353,0.3608,102640.0,102630.0,8.621e-05]
[1737429399652,0.1210797,102640.0,102630.0,8.621e-05]
[1737429400045,0.039024,102640.0,102630.0,8.621e-05]
[1737429402351,0.24083797,102640.0,102630.0,8.621e-05]
[1737429402948,0.68369367,102640.0,102630.0,8.621e-05]
[1737429403258,0.039033,102620.0,102600.0,0.40129986]
[1737429403447,0.039035,102610.0,102600.0,0.40129986]
[1737429403848,0.4818907,102610.0,102600.0,0.00146186]
[1737429404158,0.12118989,102610.0,102600.0,0.00146186]
[1737429404456,0.48198989,102610.0,102600.0,0.00146186]
[1737429405160,0.03913419,102610.0,102600.0,0.04050086]
[1737429405350,9.919e-05,102610.0,102600.0,0.40130086]
[1737429406050,0.03913419,102610.0,102600.0,0.36226186]
[1737429406353,0.24094816,102610.0,102600.0,0.36226186]
[1737429406857,0.24094816,102610.0,102600.0,0.40130086]
[1737429409453,0.32300386,102610.0,102600.0,0.36226186]
[1737429409650,0.24094816,102610.0,102600.0,0.36226186]
[1737429410755,0.20191316,102610.0,102600.0,0.78335656]
[1737429410960,0.20346396,102620.0,102610.0,0.039035]
[1737429411153,0.08334325,102630.0,102620.0,0.039031]
[1737429411348,0.17257248,102640.0,102630.0,0.039028]
[1737429411653,0.48175333,102660.0,102650.0,0.03902]
[1737429411849,0.48175333,102660.0,102650.0,0.76062]
[1737429412452,0.43245851,102660.0,102650.0,0.8426757]
[1737429412650,0.00146178,102680.0,102670.0,0.039012]
[1737429412956,0.00146178,102680.0,102670.0,0.399812]
[1737429413560,0.04047078,102680.0,102670.0,0.399812]
[1737429414955,0.039014,102670.0,102660.0,0.3608]
[1737429415149,0.039014,102670.0,102660.0,0.399816]
[1737429415664,0.039014,102670.0,102660.0,0.3608]
[1737429416054,1.539014,102670.0,102660.0,0.3608]
[1737429416363,0.039014,102670.0,102660.0,0.399816]
[1737429418062,1.539014,102670.0,102660.0,0.399816]
[1737429418263,1.5,102670.0,102660.0,0.399816]
[1737429418560,0.04047078,102680.0,102660.0,0.399816]
[1737429418958,1.54047078,102680.0,102660.0,0.399816]
[1737429420160,0.039012,102670.0,102660.0,0.399816]
[1737429420361,0.039012,102670.0,102660.0,0.3608]
[1737429420561,0.247912,102670.0,102660.0,0.3608]
[1737429420758,1.50202179,102680.0,102670.0,0.039012]
[1737429420956,0.00146178,102680.0,102670.0,0.399812]
[1737429421161,0.01035294,102690.0,102680.0,0.039009]
[1737429421463,0.1994,102700.0,102690.0,0.039005]
[1737429421668,0.1,102700.0,102690.0,0.52640503]
[1737429421971,0.61459,102730.0,102710.0,0.038997]
[1737429422269,0.038993,102720.0,102700.0,0.399801]
[1737429422662,0.038997,102710.0,102700.0,0.3608]
[1737429422968,0.038994,102720.0,102700.0,0.399801]
[1737429423169,0.36741499,102730.0,102710.0,0.399797]
[1737429423359,0.36741499,102730.0,102720.0,0.399793]
[1737429423967,0.36741499,102730.0,102720.0,0.038993]
[1737429424268,0.32842399,102730.0,102710.0,0.038997]
[1737429424467,0.038995,102720.0,102710.0,0.038997]
[1737429425665,0.038995,102720.0,102700.0,0.3608]
[1737429425968,0.038995,102720.0,102700.0,0.399801]
[1737429426172,1.538995,102720.0,102700.0,0.399801]
[1737429427367,0.038997,102710.0,102700.0,0.039001]
[1737429429366,0.038997,102710.0,102690.0,0.399804]
[1737429429570,0.1083,102700.0,102690.0,0.399804]
[1737429431072,0.147301,102700.0,102690.0,0.399804]
[1737429431370,0.2121,102730.0,102690.0,0.62377975]
[1737429431571,0.3204,102730.0,102720.0,0.399793]
[1737429432368,0.33065071,102730.0,102720.0,0.399793]
[1737429432872,0.00146105,102740.0,102730.0,0.03899]
[1737429433064,0.1404,102750.0,102730.0,0.48740003]
[1737429433264,0.1404,102750.0,102740.0,0.399786]
[1737429433463,1e-06,102750.0,102740.0,0.399786]
[1737429433668,1e-06,102750.0,102740.0,0.67083328]
[1737429434969,1e-06,102750.0,102740.0,0.573486]
[1737429435274,1e-06,102750.0,102740.0,0.399786]
[1737429437065,0.0985,102760.0,102740.0,0.3608]
[1737429437363,0.0985,102760.0,102750.0,0.04]
[1737429437676,0.245178,102760.0,102750.0,0.04]
[1737429438372,0.605978,102760.0,102750.0,0.04]
[1737429438575,0.245178,102760.0,102750.0,0.04]
[1737429438869,0.567,102760.0,102740.0,0.399783]
[1737429439069,0.038987,102740.0,102720.0,0.399791]
[1737429439460,0.24469,102730.0,102710.0,0.36226039]
[1737429439667,0.24469,102730.0,102710.0,0.40125739]
[1737429439874,0.60549,102730.0,102710.0,0.40125739]
[1737429440266,0.24469,102730.0,102710.0,0.40125739]
[1737429440576,0.60549,102730.0,102710.0,0.40125739]
[1737429443974,0.61572558,102730.0,102710.0,0.40125739]
[1737429444383,0.038993,102720.0,102710.0,0.00146039]
[1737429444973,0.25492558,102730.0,102710.0,0.40125739]
[1737429445179,0.25492558,102730.0,102720.0,0.038993]
[1737429446179,0.26270558,102730.0,102720.0,0.038993]
[1737429447172,0.26270558,102730.0,102710.0,0.04045739]
[1737429447380,0.038993,102720.0,102710.0,0.04045739]
[1737429449078,0.21348,102730.0,102720.0,0.038993]
[1737429449281,0.10462001,102750.0,102720.0,0.48176259]
[1737429449579,0.1041,102750.0,102740.0,0.038986]
[1737429450088,0.11480453,102750.0,102740.0,0.399786]
[1737429450382,0.15378653,102750.0,102730.0,0.399789]
[1737429450686,0.51458653,102750.0,102730.0,0.399789]
[1737429451185,0.038986,102740.0,102730.0,0.399789]
[1737429451382,0.15378753,102750.0,102740.0,0.038986]
[1737429452077,0.15378753,102750.0,102730.0,0.399789]
[1737429452289,0.15378753,102750.0,102730.0,0.3608]
[1737429452472,0.15378753,102750.0,102740.0,0.038986]
[1737429452875,0.11480453,102750.0,102740.0,0.038986]
[1737429453383,0.1041,102750.0,102740.0,0.48175559]
[1737429453583,0.1041,102750.0,102740.0,0.399786]
[1737429454278,0.143082,102750.0,102740.0,0.038986]
[1737429454478,0.143082,102750.0,102730.0,0.399789]
[1737429454670,0.18606959,102750.0,102730.0,0.038989]
[1737429454873,0.03899,102730.0,102720.0,0.3608]
[1737429455076,0.038993,102720.0,102710.0,0.63356566]
[1737429455272,0.0995,102720.0,102710.0,0.71553525]
[1737429455475,0.0995,102720.0,102710.0,0.63356566]
[1737429456485,0.0995,102720.0,102710.0,0.71553525]
[1737429457578,0.0995,102720.0,102710.0,0.63356566]
[1737429457988,0.0995,102720.0,102710.0,0.40125739]
[1737429459589,0.0995,102720.0,102710.0,0.48322698]
[1737429460290,0.1044,102740.0,102730.0,0.03899]
[1737429460987,0.39398356,102750.0,102740.0,0.038986]
[1737429461491,0.56735124,102750.0,102740.0,0.038986]
[1737429463583,0.52836624,102750.0,102740.0,0.038986]
[1737429463792,0.53912253,102750.0,102740.0,0.038986]
[1737429463987,0.52836624,102750.0,102740.0,0.038986]
[1737429464180,0.31816624,102750.0,102740.0,0.48175559]
[1737429464582,0.31816624,102750.0,102740.0,0.57908392]
[1737429464782,0.14625917,102760.0,102750.0,0.038982]
[1737429464993,0.14479856,102760.0,102750.0,0.399782]
[1737429466790,0.35817962,102770.0,102760.0,0.038978]
[1737429468582,0.3088,102770.0,102760.0,0.399778]
[1737429469091,0.2039,102770.0,102760.0,0.399778]
[1737429469285,0.10512001,102790.0,102780.0,0.038971]
[1737429469485,0.32054949,102790.0,102780.0,0.12094059]
[1737429469786,0.32054949,102790.0,102780.0,0.48174059]
[1737429469787,0.31798,102790.0,102780.0,0.48174059]
[1737429469984,0.1,102800.0,102790.0,0.038967]
[1737429470184,0.1,102800.0,102790.0,0.48173659]
[1737429471294,0.1,102800.0,102790.0,0.399767]
[1737429472392,0.22093259,102800.0,102780.0,0.39977]
[1737429472594,0.243667,102790.0,102780.0,0.03897]
[1737429473991,0.32563659,102790.0,102770.0,0.399774]
[1737429474188,0.243667,102790.0,102770.0,0.399774]
[1737429474391,0.17484378,102780.0,102770.0,0.399774]
[1737429476702,0.21381478,102780.0,102770.0,0.038974]
[1737429476896,0.31821478,102780.0,102760.0,0.038978]
[1737429477100,0.038974,102770.0,102760.0,0.038978]
[1737429477300,0.12094359,102770.0,102760.0,0.038978]
[1737429477600,0.038974,102770.0,102760.0,0.038978]
[1737429478689,0.038976,102770.0,102750.0,0.03898]
[1737429478894,0.47566717,102780.0,102760.0,0.3608]
[1737429479093,0.51463917,102780.0,102760.0,0.399776]
[1737429480400,0.038974,102770.0,102760.0,0.399776]
[1737429480795,0.038974,102770.0,102730.0,0.44410496]
[1737429480796,0.038982,102750.0,102730.0,0.44410496]
[1737429480994,0.12095559,102740.0,102730.0,0.44410496]
[1737429481298,0.038986,102740.0,102730.0,0.04044802]
[1737429481601,0.038986,102740.0,102720.0,0.80344994]
[1737429481602,0.48175559,102740.0,102720.0,0.80344994]
[1737429481896,0.2153,102730.0,102720.0,0.80344994]
[1737429482300,0.33625959,102730.0,102720.0,0.40365694]
[1737429482597,0.69705959,102730.0,102720.0,0.40365694]
[1737429482809,0.69705959,102730.0,102710.0,0.28832639]
[1737429483005,0.21956259,102720.0,102710.0,0.28832639]
[1737429483303,0.58036259,102720.0,102710.0,0.28832639]
[1737429483699,0.038997,102710.0,102700.0,0.74977513]
[1737429483898,0.48176659,102710.0,102700.0,0.67229646]
[1737429484099,0.48176659,102710.0,102700.0,0.50999646]
[1737429484294,0.038997,102710.0,102700.0,0.50999646]
[1737429484611,0.12096659,102710.0,102700.0,0.50999646]
[1737429484903,0.48188133,102710.0,102700.0,0.50999646]
[1737429485102,0.48176659,102710.0,102700.0,0.50999646]
[1737429486097,0.039001,102700.0,102690.0,0.00146055]
[1737429486309,0.039006,102690.0,102670.0,0.039011]
[1737429486497,0.12097559,102690.0,102670.0,0.399811]
[1737429486802,0.03911349,102680.0,102660.0,0.399816]
[1737429487098,0.03911349,102680.0,102660.0,0.41014318]
[1737429487306,0.03911349,102680.0,102670.0,0.3608]
[1737429487500,0.03911349,102680.0,102660.0,0.41014318]
[1737429488004,0.03911349,102680.0,102660.0,0.04934318]
[1737429488304,0.03911349,102680.0,102660.0,0.41014318]
[1737429488503,0.03911349,102680.0,102670.0,0.399812]
[1737429488803,0.00010349,102680.0,102670.0,0.399812]
[1737429489104,0.03911249,102680.0,102670.0,0.399812]
[1737429489801,0.00010349,102680.0,102670.0,0.399812]
[1737429490007,0.00010349,102680.0,102670.0,1.14697628]
[1737429490202,0.04046019,102710.0,102690.0,0.039005]
[1737429490408,0.04046019,102710.0,102690.0,0.399805]
[1737429490704,0.039001,102700.0,102690.0,0.399805]
[1737429491295,0.039001,102700.0,102690.0,0.3608]
[1737429491503,0.039001,102700.0,102680.0,0.399808]
[1737429491808,0.1450202,102690.0,102680.0,0.399808]
[1737429493099,0.1450202,102690.0,102680.0,0.48177759]
[1737429493994,0.1450202,102690.0,102680.0,0.399808]
[1737429495008,0.039009,102680.0,102670.0,0.606812]
[1737429495309,0.039009,102680.0,102660.0,0.01050194]
[1737429495499,0.039009,102680.0,102660.0,0.039016]
[1737429495808,0.12097859,102680.0,102660.0,0.039016]
[1737429496005,0.039009,102680.0,102660.0,0.039016]
[1737429497312,0.039009,102680.0,102670.0,0.3608]
[1737429497697,0.36859,102690.0,102670.0,0.399812]
[1737429497903,0.407596,102690.0,102670.0,0.399812]
[1737429498097,0.407596,102690.0,102680.0,0.039009]
[1737429498298,0.37884468,102690.0,102680.0,0.039009]
[1737429498502,0.37884468,102690.0,102680.0,0.254909]
[1737429498808,0.37884468,102690.0,102680.0,0.2159]
[1737429499008,0.61535655,102690.0,102680.0,0.104]
[1737429499201,0.61535655,102690.0,102670.0,0.399812]
[1737429499405,0.48178059,102680.0,102660.0,0.252016]
[1737429499907,0.12098159,102670.0,102650.0,0.150219]
[1737429500103,0.44276959,102670.0,102650.0,0.150219]
[1737429500313,0.039016,102660.0,102650.0,0.150219]
[1737429500505,0.48178259,102670.0,102650.0,0.150219]
[1737429500705,0.399813,102670.0,102650.0,0.150219]
[1737429501706,0.3608,102670.0,102650.0,0.150219]
[1737429501912,0.3608,102670.0,102640.0,0.25358116]
[1737429501913,0.03902,102650.0,102640.0,0.25358116]
[1737429502813,0.03902,102650.0,102640.0,0.11065716]
[1737429502814,0.48178959,102650.0,102640.0,0.11065716]
[1737429503209,0.48178959,102650.0,102640.0,0.00155716]
[1737429503608,0.48178959,102650.0,102640.0,9.598e-05]
[1737429504008,0.39982,102650.0,102640.0,9.598e-05]
[1737429506519,0.41000331,102650.0,102640.0,9.598e-05]
[1737429507619,0.41000331,102650.0,102640.0,0.03911998]
[1737429509119,0.72986729,102650.0,102620.0,0.7774012]
[1737429509319,0.72986729,102650.0,102640.0,0.48179359]
[1737429509320,0.31986398,102650.0,102640.0,0.48179359]
[1737429509520,0.15036398,102650.0,102640.0,0.48179359]
[1737429509716,0.5162023,102680.0,102660.0,0.039014]
[1737429510024,0.0391346,102670.0,102660.0,0.039014]
[1737429510819,0.039016,102660.0,102650.0,0.1039]
[1737429511023,0.0391356,102670.0,102650.0,0.142917]
[1737429511217,0.0391356,102670.0,102660.0,0.039016]
[1737429511419,0.0391356,102670.0,102650.0,0.54586967]
[1737429511725,0.039026,102640.0,102620.0,0.03911902]
[1737429511920,0.03911791,102630.0,102620.0,0.03911902]
[1737429512225,0.03911791,102630.0,102620.0,8.802e-05]
[1737429512429,0.04690791,102630.0,102620.0,8.802e-05]
[1737429512728,0.00787991,102630.0,102620.0,0.39991902]
[1737429514632,0.00787991,102630.0,102620.0,0.50231902]
[1737429516226,0.1242102,102630.0,102620.0,0.50231902]
[1737429516420,0.1242102,102630.0,102620.0,0.61844671]
[1737429516729,0.1242102,102630.0,102620.0,0.58428861]
[1737429516929,0.1242102,102630.0,102620.0,0.63682905]
[1737429517522,0.1242102,102630.0,102620.0,0.55485946]
[1737429519537,0.1632382,102630.0,102620.0,0.55485946]
[1737429519723,0.1632382,102630.0,102620.0,0.50231902]
[1737429520123,0.1632382,102630.0,102620.0,0.39991902]
[1737429520931,0.1242102,102630.0,102620.0,0.39991902]
[1737429521528,0.56697979,102630.0,102610.0,0.3608]
[1737429521734,0.48180059,102620.0,102610.0,0.09166647]
[1737429521928,0.48180059,102620.0,102610.0,0.039035]
[1737429522929,0.399831,102620.0,102610.0,0.039035]
[1737429523522,0.3608,102620.0,102610.0,0.039035]
[1737429523933,0.13452888,102630.0,102620.0,0.039031]
[1737429524139,0.49532888,102630.0,102620.0,0.039031]
[1737429525038,0.37899859,102630.0,102620.0,0.039031]
[1737429525543,0.49999618,102630.0,102610.0,0.3608]
[1737429525848,0.49999618,102630.0,102610.0,0.399834]
[1737429526545,0.49999618,102630.0,102620.0,0.039031]
[1737429526741,0.01819859,102630.0,102620.0,0.039031]
[1737429527141,0.00787991,102630.0,102620.0,0.039031]
[1737429527340,0.00787991,102630.0,102620.0,0.252931]
[1737429528249,0.00787991,102630.0,102620.0,0.28709163]
[1737429528440,0.00787991,102630.0,102620.0,0.33972822]
[1737429528642,0.00787991,102630.0,102620.0,0.30556759]
[1737429529353,0.00787991,102630.0,102620.0,0.33972798]
[1737429529548,0.00787991,102630.0,102620.0,0.33972801]
[1737429529751,0.00787991,102630.0,102620.0,0.33972819]
[1737429529954,0.00787991,102630.0,102620.0,0.30556759]
[1737429530447,0.00787991,102630.0,102620.0,0.33972796]
[1737429530951,0.18282599,102630.0,102620.0,0.34978173]
[1737429531146,0.18282599,102630.0,102620.0,0.31562136]
[1737429532647,0.18282599,102630.0,102620.0,0.26298477]
[1737429532848,0.18282599,102630.0,102620.0,0.31567875]
[1737429533744,0.18282599,102630.0,102620.0,0.26298477]
[1737429534451,0.18282599,102630.0,102620.0,0.31572917]
[1737429534653,0.18273608,102630.0,102620.0,0.75849876]
[1737429534847,0.36226199,102660.0,102650.0,0.03902]
[1737429535051,0.37256641,102660.0,102650.0,0.03902]
[1737429535351,0.493552,102660.0,102650.0,0.03902]
[1737429535752,0.49367409,102660.0,102650.0,0.03902]
[1737429536459,0.45465809,102660.0,102650.0,0.03902]
[1737429536665,0.0118885,102660.0,102650.0,0.03902]
[1737429537048,0.09385809,102660.0,102650.0,0.03902]
[1737429538563,0.32698313,102660.0,102650.0,0.03902]
[1737429539657,0.32698313,102660.0,102630.0,0.399828]
[1737429539658,0.68778313,102660.0,102640.0,0.039023]
[1737429539858,0.36600013,102660.0,102630.0,0.3608]
[1737429540058,0.36600013,102660.0,102650.0,0.03902]
[1737429540258,0.28403054,102660.0,102650.0,0.03902]
[1737429540855,0.24501354,102660.0,102650.0,0.03902]
[1737429541652,0.24501354,102660.0,102650.0,0.48178959]
[1737429541653,0.23324713,102660.0,102650.0,0.48178959]
[1737429541856,0.55367197,102670.0,102660.0,0.039016]
[1737429542162,0.32054693,102680.0,102670.0,0.039012]
[1737429542346,0.32054693,102680.0,102670.0,0.48178159]
[1737429542546,0.26259151,102680.0,102670.0,0.51592122]
[1737429543154,0.26259151,102680.0,102670.0,0.61332539]
[1737429543361,0.26259151,102680.0,102670.0,0.57918576]
[1737429544255,0.26259151,102680.0,102670.0,0.399812]
[1737429545659,0.26259151,102680.0,102670.0,0.48178159]
[1737429545861,0.26259151,102680.0,102670.0,0.399812]
[1737429546760,0.26259151,102680.0,102670.0,0.41001659]
[1737429547151,0.20369564,102680.0,102670.0,0.41001659]
[1737429547553,0.01859164,102680.0,102670.0,0.49198618]
[1737429547760,0.13179677,102690.0,102680.0,0.039008]
[1737429548060,0.112,102720.0,102710.0,0.038997]
[1737429549760,0.31529565,102730.0,102720.0,0.038993]
[1737429550059,0.20369565,102730.0,102720.0,0.48176259]
[1737429550764,0.20369565,102730.0,102720.0,0.399793]
[1737429551264,0.60390431,102740.0,102720.0,0.038993]
[1737429551971,0.12096259,102720.0,102700.0,0.038999]
[1737429552258,0.1046,102710.0,102700.0,0.038999]
[1737429553050,0.3608,102730.0,102700.0,0.48176859]
[1737429553256,0.612687,102740.0,102720.0,0.08196959]
[1737429553461,0.612687,102740.0,102730.0,0.038989]
[1737429554165,0.5737,102740.0,102730.0,0.038989]
[1737429556457,0.2129,102740.0,102730.0,0.038989]
[1737429557954,0.2129,102740.0,102730.0,0.399789]
[1737429559162,0.01058245,102750.0,102740.0,0.038986]
[1737429559356,0.21866047,102770.0,102760.0,0.038978]
[1737429559559,0.2172,102770.0,102760.0,0.48174759]
[1737429559767,0.28439388,102780.0,102770.0,0.038974]
[1737429559959,0.17349388,102780.0,102770.0,0.48174359]
[1737429560159,0.20369565,102790.0,102770.0,0.48174359]
[1737429560369,0.20369565,102790.0,102780.0,0.48173959]
[1737429561169,0.21147565,102790.0,102780.0,0.57903951]
[1737429561372,0.21147565,102790.0,102780.0,0.49706992]
[1737429562171,0.21147565,102790.0,102780.0,0.39977]
[1737429562361,0.21147565,102790.0,102780.0,0.48173959]
[1737429563269,0.21147565,102790.0,102780.0,0.57903005]
[1737429564066,0.21147565,102790.0,102780.0,0.58939404]
[1737429564770,0.32247517,102800.0,102780.0,0.58939404]
[1737429564969,0.54993332,102810.0,102800.0,0.038963]
[1737429565172,0.54993332,102810.0,102800.0,0.56370218]
[1737429565579,0.54993332,102810.0,102800.0,0.57901831]
[1737429566075,0.68777808,102840.0,102810.0,0.038956]
[1737429566264,0.69798372,102840.0,102810.0,0.038956]
[1737429567070,0.65903472,102840.0,102800.0,0.3608]
[1737429567273,0.61601313,102840.0,102820.0,0.038953]
[1737429567577,0.69798272,102840.0,102820.0,0.038953]
[1737429567775,0.61601313,102840.0,102820.0,0.038953]
[1737429567967,2.11601313,102840.0,102820.0,0.038953]
[1737429568775,2.11601313,102840.0,102830.0,0.038952]
[1737429572080,2.19798272,102840.0,102830.0,0.038952]
[1737429572270,2.11601313,102840.0,102830.0,0.038952]
[1737429573285,2.19798272,102840.0,102820.0,0.038954]
[1737429573475,0.3608,102830.0,102820.0,0.038954]
[1737429573878,0.038957,102820.0,102800.0,0.40990513]
[1737429574079,0.59032659,102820.0,102800.0,0.04910513]
[1737429574282,0.2258,102810.0,102800.0,0.04910513]
[1737429574579,0.264761,102810.0,102790.0,0.399765]
[1737429574883,0.264761,102810.0,102790.0,0.399764]
[1737429575979,0.625561,102810.0,102790.0,0.399764]
[1737429576181,0.2258,102810.0,102800.0,0.12093259]
[1737429576375,0.00060001,102820.0,102810.0,0.038959]
[1737429576585,0.04915364,102840.0,102830.0,0.038952]
[1737429577477,0.01020564,102840.0,102830.0,0.038952]
[1737429577684,0.038944,102850.0,102840.0,0.038948]
[1737429577985,0.399744,102850.0,102840.0,0.038948]
[1737429578486,0.399744,102850.0,102830.0,0.038951]
[1737429578786,0.40964445,102850.0,102820.0,0.44276959]
[1737429578988,0.40964445,102850.0,102820.0,0.45290653]
[1737429579177,0.40964445,102850.0,102840.0,0.038948]
[1737429579377,2.23264101,102860.0,102850.0,0.038944]
[1737429579579,0.3323,102860.0,102850.0,0.12091359]
[1737429580487,0.14407868,102870.0,102860.0,0.03894]
[1737429580689,0.14407868,102870.0,102860.0,0.12090959]
[1737429580989,0.14407868,102870.0,102860.0,0.58460959]
[1737429581185,0.14407868,102870.0,102860.0,0.68920959]
[1737429581390,0.43428441,102900.0,102880.0,0.038933]
[1737429581581,0.43428441,102900.0,102890.0,0.12089859]
[1737429581779,0.33198441,102900.0,102890.0,0.48169859]
[1737429582788,0.33052589,102900.0,102890.0,0.48169859]
[1737429583383,0.1,102900.0,102890.0,0.48169859]
[1737429583888,0.1,102900.0,102890.0,0.57888504]
[1737429584090,0.04,102910.0,102900.0,0.038925]
[1737429584280,0.1730471,102930.0,102900.0,0.48169459]
[1737429584478,0.1730471,102930.0,102920.0,0.52168759]
[1737429585891,0.1730471,102930.0,102920.0,0.61884571]
[1737429586091,0.1730471,102930.0,102920.0,0.72884571]
[1737429587188,0.1730471,102930.0,102920.0,0.73901269]
[1737429587694,0.2086,102950.0,102940.0,0.03891]
[1737429587992,0.1039,102950.0,102940.0,0.16087959]
[1737429588182,1.9715,102960.0,102950.0,0.038906]
[1737429588383,0.4715,102960.0,102950.0,0.038906]
[1737429588690,0.1104,102970.0,102950.0,0.44276959]
[1737429588891,0.1079,102980.0,102960.0,0.08196959]
[1737429589093,0.1079,102980.0,102970.0,0.038899]
[1737429589478,0.4687,102980.0,102970.0,0.038899]
[1737429589683,0.4687,102980.0,102950.0,0.038904]
[1737429589684,0.22876559,102980.0,102950.0,0.038904]
[1737429589988,0.507596,102980.0,102950.0,0.48167359]
[1737429590386,0.507596,102980.0,102960.0,0.038902]
[1737429590793,0.507596,102980.0,102960.0,0.12087159]
[1737429591184,0.146796,102980.0,102960.0,0.12087159]
[1737429591491,0.507596,102980.0,102960.0,0.12087159]
[1737429591993,0.507596,102980.0,102960.0,0.48167159]
[1737429592287,0.3608,102980.0,102970.0,0.038899]
[1737429593090,0.3608,102980.0,102950.0,0.3608]
[1737429593091,0.399696,102980.0,102950.0,0.399703]
[1737429593309,0.399696,102980.0,102960.0,0.038902]
[1737429593687,0.48166559,102980.0,102960.0,0.038902]
[1737429593889,0.48166559,102980.0,102950.0,0.44276959]
[1737429593890,0.3608,102980.0,102950.0,0.44276959]
[1737429594201,0.37379684,102990.0,102970.0,0.038899]
[1737429594498,0.73459684,102990.0,102970.0,0.038899]
[1737429594689,0.3608,102980.0,102970.0,0.038899]
[1737429594992,0.6856575,102990.0,102970.0,0.08196959]